Cogmind - Beta 15 *** ADVENTURER MODE // 2025.05.09 @ 00:17:28 Player: birb Result: Destroyed by Y-54 Guardian with Flak Gun Performance ------------- Evolutions (4) 2000 Regions Visited (6) 1200 Robots Destroyed (44) 220 Value Destroyed (1477) 1477 Prototype IDs (13) 260 Alien Tech Used (0) 0 Bonus (725) 725 TOTAL SCORE: 5882 Bonus ------- Follower Combat Kills 37 Registered with UFD 300 Met Optimus in HQ 500 Friendly Fire -112 Cogmind --------- Core Integrity 0/850 Matter 276/300 Energy 156/160 System Corruption 10% Temperature Cool (20) Movement Flying (94) Ox1 Location -6/Extension Parts ------- > --- POWER (2) -------- Light Fission Core > --- PROPULSION (4) --- Cooled VTOL Module Cooled VTOL Module Cooled VTOL Module > --- UTILITY (6) ------ Improved Cryofiber Web Advanced Heat Sink Improved Signal Interpreter Hacking Suite > --- WEAPON (3) ------- Greatsword Companion Sword > --- INVENTORY (5) ---- Light Fission Core Cesium-ion Thruster Cesium-ion Thruster Cooled VTOL Module Cooled VTOL Module Peak State ------------ > --- POWER ------------ Improved Ion Engine Angular Momentum Engine > --- PROPULSION ------- Cooled VTOL Module Cooled VTOL Module Cooled VTOL Module Cooled VTOL Module > --- UTILITY ---------- Scrap Suit Improved Sensor Array Improved Signal Interpreter Hacking Suite > --- WEAPON ----------- Heavy Machine Gun Antimatter Cannon Companion Sword > --- INVENTORY -------- Scrap Suit Improved Cryofiber Web Advanced Melee Analysis Suite Botcube [Rating: 63] Favorites ----------- Power Improved Ion Engine Engine Improved Ion Engine Power Core Light Nuclear Core Propulsion Improved Medium Treads Treads Improved Medium Treads Leg Flexi-carbon Leg Wheel Compact Wheel Flight Unit Cooled VTOL Module Utility Improved Targeting Computer Device Scrap Suit Storage Small Storage Unit Processor Improved Targeting Computer Hackware Hacking Suite Protection Gun Armor Weapon Subdweller Shrapnel Launcher Energy Gun Field Laser Energy Cannon Light EM Pulse Cannon Ballistic Gun Subdweller Machine Gun Ballistic Cannon Battle Cannon Launcher Subdweller Shrapnel Launcher Slashing Weapon Companion Sword Build | -11 -10 -10 -9 -9 -6 -6 ------- Run | Yrd Mat Sub Rec Scr Fac Ext Slots Evolved 8 | . . . . . 8 . Power 1 | . . . . . 1 . Propulsion 2 | . . . . . 2 . Utility 4 | . . . . . 4 . Weapon 1 | . . . . . 1 . Parts Attached 59 | 6 2 7 5 11 19 9 Power 8 | 1 1 1 . 1 2 2 Engine 5 | 1 . 1 . 1 1 1 Core 3 | . 1 . . . 1 1 Reactor . | . . . . . . . Propulsion 15 | 2 . 1 . 5 7 . Treads 2 | . . . . 2 . . Leg 1 | . . . . 1 . . Wheel 7 | 2 . 1 . 2 2 . Hover . | . . . . . . . Flight 5 | . . . . . 5 . Utility 17 | 1 . 2 1 2 6 5 Device 9 | . . 1 . 2 2 4 Storage 1 | 1 . . . . . . Processor 3 | . . . 1 . 2 . Hackware 2 | . . . . . 1 1 Protection 2 | . . 1 . . 1 . Artifact . | . . . . . . . Weapon 19 | 2 1 3 4 3 4 2 Energy Gun 6 | 2 1 . 1 1 1 . Energy Cannon 1 | . . . 1 . . . Ballistic Gun 2 | . . 2 . . . . Ballistic Cannon 2 | . . . . 1 1 . Launcher 6 | . . 1 2 . 2 1 Special Weapon . | . . . . . . . Impact Weapon . | . . . . . . . Slashing Weapon 2 | . . . . 1 . 1 Piercing Weapon . | . . . . . . . Special Melee Weapon . | . . . . . . . Unidentified Prototypes 5 | . . 1 . 1 3 . Parts Lost 20 | . 1 6 . 1 9 3 Power 2 | . . 1 . . 1 . Propulsion 5 | . . 2 . . 2 1 Utility 7 | . . 1 . . 4 2 Weapon 6 | . 1 2 . 1 2 . Highest Loss Streak 5 | . 1 5 . 1 3 1 To Critical Strikes . | . . . . . . . Average Backups 2 | . . 1 2 3 3 2 Power . | . . 1 1 . . . Propulsion . | . . . . . . 2 Utility 1 | . . . 1 1 2 . Weapon 1 | . . . . 1 . . Tool/Special . | . . . . . . . Unused Backups 11 | . . . . 1 5 5 Power 1 | . . . . . . 1 Propulsion 6 | . . . . . 2 4 Utility 2 | . . . . . 2 . Weapon 2 | . . . . 1 1 . Tool/Special . | . . . . . . . Average Slot Usage (%) 84 | . 83 80 80 93 64 58 Engine 9 | . 7 3 11 12 7 2 Core 1 | . 7 8 . . . . Treads 9 | . . . . 15 . . Leg 1 | . . . . 1 . . Wheel 7 | . 28 20 11 3 7 . Flight 2 | . . . . . 6 26 Device 6 | . . 7 . 5 10 12 Storage 1 | . 14 9 . . . . Processor 7 | . . . 6 9 6 6 Protection 5 | . . 3 11 7 3 . Energy Gun 6 | . 26 15 7 6 . . Ballistic Gun 1 | . . 9 3 . . . Ballistic Cannon 4 | . . . . 6 4 . Launcher 12 | . . 1 22 18 3 . Slashing Weapon 5 | . . . . 6 6 8 Peak Build Rating 63 | 6 8 19 23 38 63 60 Average Rating 30 | 4 6 12 21 28 51 45 On Entrance 18 | . 6 8 17 23 33 39 Naked Turns . | . . . . . . . Heaviest Build 48 | 12 14 24 29 30 48 23 Greatest Support 60 | 32 32 32 20 60 40 22 Greatest Overweight (x) 8 | . . 3 1 2 8 1 Average Overweight (x) . | . . . 1 . 1 . Largest Inventory Capacity 8 | 8 8 8 5 5 5 5 Average Capacity 5 | 7 8 6 5 5 5 5 Most Carried 5 | . 2 5 5 5 5 5 Average Carried 4 | . . 2 4 4 4 3 Final Capacity 8 | 8 8 5 5 5 5 5 Final Carried 5 | . 1 5 5 5 4 5 Class Distribution -------------------- 31% | Bomber 26% | Mutant 14% | Scrapper 10% | Hacker-Mutant 6% | Gunner 5% | Sprinter Dominant Class ---------------- Mutant | -10/Materials Mutant | -10/Subcaves Gunner | -9/Recycling Bomber | -9/Scraptown Hacker-Mutant | -6/Factory Sprinter | -6/Extension Resources | -11 -10 -10 -9 -9 -6 -6 ----------- Run | Yrd Mat Sub Rec Scr Fac Ext Matter Collected 1253 | 136 139 192 155 125 144 362 Remotely 109 | . . . . . . 109 Salvage Created 1607 | . 282 353 . . 329 643 Parts 89 | . 12 29 . . 26 22 Haulers Intercepted 2 | . 2 . . . . . Recyclers Shooed . | . . . . . . . Parts Field Recycled . | . . . . . . . Retrieved Matter . | . . . . . . . Parts Self-Destructed 16 | . . 16 . . . . Prevented . | . . . . . . . Kills | -11 -10 -10 -9 -9 -6 -6 ------- Run | Yrd Mat Sub Rec Scr Fac Ext Combat Hostiles Destroyed 29 | . 4 11 . . 8 6 Melee 7 | . . . . . 1 6 Guns 11 | . 4 7 . . . . Cannons 3 | . . . . . 3 . AOE 8 | . . 4 . . 4 . Classes Destroyed 15 | . 3 6 . . 5 1 Worker 2 | . . . . . 2 . Builder 1 | . . . . . 1 . Hauler 2 | . 2 . . . . . Recycler 2 | . . . . . . 2 Operator 2 | . . . . . 1 1 Turret 2 | . . 2 . . . . Watcher 3 | . 1 . . . 2 . Swarmer 5 | . . 5 . . . . Grunt 12 | . 4 1 . . 3 4 Sentry 4 | . . 1 . . 2 1 Hunter 3 | . . . . . 2 1 Programmer 1 | . . . . . 1 . Artisan 1 | . . 1 . . . . Subdweller 4 | . . 4 . . . . Federalist 1 | . . 1 . . . . Best Kill Streak 6 | . 3 6 . . 5 4 Combat Bots Only 4 | . 2 4 . . 3 4 Max Kills in Single Turn 5 | . 1 3 . . 5 1 Gunslinging . | . . . . . . . Exploded 3 | . . 3 . . 3 . Melee 1 | . . . . . 1 1 Uniques/NPCs Destroyed . | . . . . . . . Combat | -11 -10 -10 -9 -9 -6 -6 -------- Run | Yrd Mat Sub Rec Scr Fac Ext Hostile Shots Fired 328 | . 27 81 . 30 116 74 Missed 107 | . 10 28 . 7 37 25 Hits 221 | . 17 53 . 23 79 49 Projectile 221 | . 17 53 . 23 79 49 Critical Strikes 7 | . . . . 1 2 4 Damage Taken 3614 | . 147 618 . 305 1869 675 Core 1077 | . 41 156 . 30 513 337 Absorbed by Shields . | . . . . . . . Ignored by Resistances 745 | . 46 181 . 85 248 185 Regen/Repaired (Parts) 20 | . . . . . 20 . Core Remaining (%) 54 | 100 . . . 9 . . Volleys Fired 103 | . 24 48 . 1 30 . Largest 3 | . 2 3 . 1 2 . Hottest 93 | . 90 93 . 80 83 . Shots Fired 159 | . 42 85 . 1 31 . Gun 124 | . 42 81 . 1 . . Cannon 30 | . . . . . 30 . Launcher 5 | . . 4 . . 1 . Special . | . . . . . . . Kinetic 95 | . . 65 . . 30 . Thermal 46 | . 25 20 . 1 . . Explosive 1 | . . . . . 1 . Electromagnetic 17 | . 17 . . . . . Robot Hit Streak 19 | . 19 13 . . 10 . Robot Miss Streak 4 | . 1 2 . 3 4 . Penetration Max . | . . . . . . . Secondary Targets 2 | . 1 1 . . . . Max Gunslinging Chain 1 | . 1 1 . . . . Shots Hit Robots 137 | . 36 44 . . 30 27 Core Hits 78 | . 10 25 . . 32 11 Critical Kills . | . . . . . . . Critical Parts Destroyed . | . . . . . . . Critical Strikes 6 | . 2 . . . 2 2 Burn 2 | . 2 . . . . . Blast 2 | . . . . . 2 . Melee Attacks 118 | . . . . . 87 31 Impact . | . . . . . . . Slashing 118 | . . . . . 87 31 Piercing . | . . . . . . . Sneak Attacks 3 | . . . . . 1 2 Combat Hostiles . | . . . . . . . Follow-up Attacks 2 | . . . . . . 2 Damage Inflicted 4264 | . 515 877 . . 1656 1216 Guns 967 | . 464 503 . . . . Cannons 797 | . . . . . 797 . Explosions 952 | . 51 374 . . 527 . Melee 1548 | . . . . . 332 1216 Ramming . | . . . . . . . Kinetic 1583 | . . 786 . . 797 . Thermal 484 | . 292 91 . . 101 . Explosive 426 | . . . . . 426 . Electromagnetic 223 | . 223 . . . . . Impact . | . . . . . . . Slashing 1548 | . . . . . 332 1216 Piercing . | . . . . . . . Highest Corruption 10 | . . . . . 10 10 Average Corruption 5 | . . . . . 3 10 Corruption Purged . | . . . . . . . Corruption Blocked . | . . . . . . . Effects 31 | . . . . . 19 12 Message Errors 7 | . . . . . 4 3 Matter Fused 5 | . . . . . 3 2 Heat Flow Errors 4 | . . . . . 3 1 Energy Discharges 5 | . . . . . 3 2 Parts Rejected 1 | . . . . . 1 . Data Loss (minor) 5 | . . . . . 2 3 Data Loss (major) 3 | . . . . . 3 . Misdirections 1 | . . . . . . 1 Overload Shots . | . . . . . . . Overflow Damage 164 | . . 33 . . 10 121 Projectiles . | . . . . . . . Explosions 43 | . . 33 . . 10 . Melee 121 | . . . . . . 121 Knockbacks 3 | . . . . . 3 . Impact . | . . . . . . . Kinetic 3 | . . . . . 3 . Secondary . | . . . . . . . Self-Inflicted Damage . | . . . . . . . Shots . | . . . . . . . Rammed . | . . . . . . . Targets Rammed . | . . . . . . . Kicked . | . . . . . . . Crushed . | . . . . . . . Highest Temperature 330 | . 330 21 . 61 243 1 Average Temperature 95 | . 131 8 . 22 50 1 Received Heat Transfer 1068 | . 108 159 . 235 159 407 Siege Activations . | . . . . . . . Martial Activations . | . . . . . . . Shielding Activations . | . . . . . . . Robots Disrupted . | . . . . . . . Combat Hostiles . | . . . . . . . Robots Corrupted . | . . . . . . . Combat Hostiles . | . . . . . . . Parts Fried . | . . . . . . . Impact Corruptions . | . . . . . . . Robots Melted . | . . . . . . . Combat Hostiles . | . . . . . . . Parts Melted 2 | . 2 . . . . . Heat Transferred 1274 | . 964 260 . . 50 . Parts Sabotaged . | . . . . . . . Parts Stolen . | . . . . . . . Parts Stripped . | . . . . . . . Power Chain Reactions 1 | . 1 . . . . . Alert | -11 -10 -10 -9 -9 -6 -6 ------- Run | Yrd Mat Sub Rec Scr Fac Ext Maximum Alert Level . | . . . . . . . Low Security (%) 100 | 100 100 . 100 . 100 100 Level 1 . | . . . . . . . Level 2 . | . . . . . . . Level 3 . | . . . . . . . Level 4 . | . . . . . . . Level 5 . | . . . . . . . High Security . | . . . . . . . Max Security . | . . . . . . . Peak Influence 190 | . 59 . 42 . 190 140 Initial 42 | . . . 42 . . 6 Average 33 | . 25 . 6 . 47 25 Influence Increases 1085 | . 116 205 9 . 419 336 Destroy 0b10 Robot/C 560 | . 80 180 . . 160 140 Destroy 0b10 Robot/NC 60 | . 15 . . . 30 15 Destroy Leader 120 | . 16 10 . . 64 30 Allied During Kill 1 | . . . . . . 1 Successful Hack 34 | . . . 9 . 6 19 Disable Machine 45 | . . . . . 36 9 Destroy Structure 85 | . 5 . . . 78 2 Partial Spotted 30 | . . . . . 30 . Lose Combat Pursuer 150 | . . 15 . . 15 120 Influence Decreases 1049 | . 100 116 114 . 403 316 Entered New Map 83 | . . 10 63 . . 10 Time Decay 684 | . 90 96 51 . 332 115 Lost Part 101 | . 10 10 . . 61 20 Lost Ally 40 | . . . . . . 40 Purge Threat 141 | . . . . . 10 131 Squads Dispatched 11 | . 1 . . . 7 3 Investigation 8 | . 1 . . . 4 3 Extermination 1 | . . . . . 1 . Reinforcement 2 | . . . . . 2 . Assault . | . . . . . . . Garrison . | . . . . . . . Intercept . | . . . . . . . Searches Triggered . | . . . . . . . Construction Impeded . | . . . . . . . Haulers Reinforced . | . . . . . . . Active Scanning Responses . | . . . . . . . Cargo Convoy Interrupts . | . . . . . . . Stealth | -11 -10 -10 -9 -9 -6 -6 --------- Run | Yrd Mat Sub Rec Scr Fac Ext Distress Signals 1 | . . . . . . 1 Communications Jammed . | . . . . . . . Distress Signals . | . . . . . . . Times Spotted 71 | . 6 18 . 13 12 22 Peak Tracking Total 8 | . 2 6 . 6 5 8 Tactical Retreats 6 | . . 1 . . 1 4 Traps | -11 -10 -10 -9 -9 -6 -6 ------- Run | Yrd Mat Sub Rec Scr Fac Ext Traps Triggered 2 | . . . . . . 2 Indirectly . | . . . . . . . Trap Hack Attempts . | . . . . . . . Triggered . | . . . . . . . Disarmed . | . . . . . . . Reprogrammed . | . . . . . . . Reused . | . . . . . . . Traps Extracted . | . . . . . . . Installed 1 | . . . 1 . . . Triggered . | . . . . . . . Most Traps Carried 1 | . . 1 1 . . . Machines | -11 -10 -10 -9 -9 -6 -6 ---------- Run | Yrd Mat Sub Rec Scr Fac Ext Machines Disabled 9 | . . 4 . . 4 1 Max in Single Turn 3 | . . 3 . . 1 1 Energy Cycler 1 | . . . . . . 1 Machines Repaired . | . . . . . . . Machines Dismantled . | . . . . . . . Machines Sabotaged . | . . . . . . . Overloaded Fab Kills . | . . . . . . . Hacking | -11 -10 -10 -9 -9 -6 -6 --------- Run | Yrd Mat Sub Rec Scr Fac Ext Machines Accessed 30 | . . 1 6 9 6 8 Terminals 11 | . . . 3 . 2 6 Fabricators . | . . . . . . . Repair Stations . | . . . . . . . Recycling Units 7 | . . . 1 . 4 2 Scanalyzers . | . . . . . . . Garrison Access . | . . . . . . . Total Hacks 99 | . . 4 13 54 11 17 Successful 80 | . . 4 8 54 6 8 Failed 19 | . . . 5 . 5 9 Catastrophic 2 | . . . . . . 2 Database Lockouts . | . . . . . . . Manual 7 | . . . . . 5 2 Terminals 29 | . . . 8 . 6 15 Fabricators . | . . . . . . . Repair Stations . | . . . . . . . Recycling Units 10 | . . . 3 . 5 2 Scanalyzers . | . . . . . . . Garrison Access . | . . . . . . . Terminal Hacks 73 | . . 4 7 54 2 6 Record 58 | . . 4 2 52 . . Open Door 2 | . . . . 1 . 1 Branch Access Points 2 | . . . 1 . 1 . Emergency Access Points 1 | . . . 1 . . . Scanalyzer Index 1 | . . . . . . 1 Alert Level 1 | . . . 1 . . . Unreport Threat 4 | . . . . . 1 3 Locate Traps 2 | . . . 1 . . 1 Zone Layout 1 | . . . 1 . . . Proto ID Catalog 1 | . . . . 1 . . Fabricator Hacks . | . . . . . . . Repair Station Hacks . | . . . . . . . Recycling Unit Hacks 1 | . . . 1 . . . Retrieve Components 1 | . . . 1 . . . Scanalyzer . | . . . . . . . Garrison Access Hacks . | . . . . . . . Unauthorized Hacks 6 | . . . . . 4 2 Terminals . | . . . . . . . Fabricators . | . . . . . . . Repair Stations 6 | . . . . . 4 2 Recycling Units . | . . . . . . . Fedlink 6 | . . . . . 4 2 Scanalyzers . | . . . . . . . Garrison Access . | . . . . . . . Data Cores Recovered 2 | . . . . . 1 1 Used 1 | . . . . . 1 . Hacking Detections 10 | . . . 3 . 2 5 Full Trace Events 1 | . . . . . . 1 Feedback Events . | . . . . . . . Feedback Blocked . | . . . . . . . Robot Schematics Acquired . | . . . . . . . Robots Built . | . . . . . . . Authchips . | . . . . . . . Time . | . . . . . . . Total Robot Build Rating . | . . . . . . . Part Schematics Acquired . | . . . . . . . Parts Built . | . . . . . . . Authchips . | . . . . . . . Time . | . . . . . . . Total Part Build Rating . | . . . . . . . Parts Repaired . | . . . . . . . Time . | . . . . . . . Parts Recycled . | . . . . . . . Recycled Matter . | . . . . . . . Retrieved Matter . | . . . . . . . Retrieved Components 2 | . . . 2 . . . Parts Scanalyzed . | . . . . . . . Part Schematics Acquired . | . . . . . . . Parts Damaged . | . . . . . . . Bothacking | -11 -10 -10 -9 -9 -6 -6 ------------ Run | Yrd Mat Sub Rec Scr Fac Ext Used RIF Installer . | . . . . . . . Robots Hacked . | . . . . . . . Non-combat . | . . . . . . . Combat . | . . . . . . . Robot Hacks Applied . | . . . . . . . Relay Couplers Released . | . . . . . . . Fabnet Peak Effective % . | . . . . . . . Robots Rewired . | . . . . . . . Allies Hacked . | . . . . . . . Hacks Repelled . | . . . . . . . Allies | -11 -10 -10 -9 -9 -6 -6 -------- Run | Yrd Mat Sub Rec Scr Fac Ext Total Allies 5 | . . . . . . 5 Largest Group 2 | . . . . . . 2 Highest-Rated Group 56 | . . . . . . 56 Highest-Rated Ally 46 | . . . . . . 46 Total Orders . | . . . . . . . Ally Attacks 21 | . . . . . . 21 Total Damage 520 | . . . . . . 520 Kills 1 | . . . . . . 1 Allies Corrupted . | . . . . . . . Allies Melted 2 | . . . . 2 . . Intel | -11 -10 -10 -9 -9 -6 -6 ------- Run | Yrd Mat Sub Rec Scr Fac Ext Active Infowar (turns) 808 | . . . . . 808 . Sensors 808 | . . . . . 808 . Robot Analysis Total . | . . . . . . . Derelict Logs Recovered 3 | . . 1 . 2 . . Drone Launches . | . . . . . . . Drone Recoveries . | . . . . . . . Exploration | -11 -10 -10 -9 -9 -6 -6 ------------- Run | Yrd Mat Sub Rec Scr Fac Ext Turns Passed 7235 | 46 183 751 342 4336 1159 418 Spaces Moved 5089 | 38 100 518 275 2797 951 410 Core 18 | 1 . 17 . . . . Treads 1608 | . . . . 1608 . . Legs 406 | . . . . 406 . . Wheels 2501 | 37 100 501 275 783 805 . Hover . | . . . . . . . Flight 556 | . . . . . 146 410 Fastest Speed 23 | 50 100 50 120 70 26 23 Average Speed 122 | 98 100 105 120 151 79 47 Slowest Speed 555 | 100 100 200 120 190 555 97 Overloaded Moves 3 | . . . . . . 3 Propulsion Burnouts . | . . . . . . . Robots Hopped . | . . . . . . . Potential Cave-ins 38 | . . . . . 38 . Cave-ins Triggered 9 | . . . . . 9 . Exploration Rate (%) 40 | 3 34 41 57 93 19 36 Regions Visited 6 Branch Regions 4 Pre-discovered Areas 2 | . . . . 1 1 . Known Exits Taken 2 | . . 1 . . 1 . Unknown Exits Taken 4 | 1 1 . 1 1 . . Scrap Searched 6 | . . . . 6 . . Spaces Dug 54 | . . . . . 54 . Terrain Destroyed 164 | . 4 46 . 1 113 . Melee 54 | . . . . . 54 . Projectile 5 | . . . . 1 4 . AOE 105 | . 4 46 . . 55 . Terrain Rammed . | . . . . . . . Walls Destroyed . | . . . . . . . Machines Disabled . | . . . . . . . Actions | -11 -10 -10 -9 -9 -6 -6 --------- Run | Yrd Mat Sub Rec Scr Fac Ext Total 5779 | 43 141 641 286 2888 1194 586 Wait 297 | . 15 60 3 47 77 95 Move 5080 | 37 99 517 274 2796 947 410 Hop . | . . . . . . . Pick Up 31 | . 1 7 . 10 10 3 Fast Attach 46 | 6 . 3 5 7 17 8 Attach 13 | . 1 3 . 3 5 1 Detach 2 | . . . 1 . 1 . Swap 6 | . 1 1 . 3 1 . Drop 45 | . . 2 2 21 16 4 Fire 103 | . 24 48 . 1 30 . Melee 116 | . . . . . 87 29 Ram . | . . . . . . . Kick . | . . . . . . . Crush . | . . . . . . . Escape Stasis 39 | . . . . . 3 36 Rewire . | . . . . . . . Trap 1 | . . . 1 . . . Miscellaneous . | . . . . . . . Route ------- -11/Scrapyard -10/Materials (discovered 2 exits: [*Mat] / *Sub) -10/Subcaves (discovered 4 exits: Mat x2 / *Rec / Scr) -9/Recycling -9/Scraptown (discovered 2 exits: *Fac x2) -6/Factory (discovered 5 exits: *Fac / *Low x2 / *Ext x2) -6/Extension History --------- Turn | Location | Event 20 | -11/Scrapyard | Discovered new exit (range 15) 47 | -11/Scrapyard | Entered Materials 48 | -10/Materials | Met a group of wandering Federalists 179 | -10/Materials | Discovered new exit (range 15) 211 | -10/Materials | Discovered new exit (range 9) 230 | -10/Materials | Entered Subcaves 231 | -10/Subcaves | Ambushed by Subdwellers from Twisted Machinery 231 | -10/Subcaves | Continued accompanying wandering Federalists (4) 231 | -10/Subcaves | Approached by a straggling Scientist 302 | -10/Subcaves | Build established: Mutant 332 | -10/Subcaves | Shifting Twisted Machinery released Sub. Laser 613 | -10/Subcaves | Visited Clippyterm 616 | -10/Subcaves | Identified exit to Materials 616 | -10/Subcaves | Identified exit to Recycling 616 | -10/Subcaves | Learned Factory trap positions 667 | -10/Subcaves | A Subdweller sparked back to life 667 | -10/Subcaves | A Subdweller sparked back to life 667 | -10/Subcaves | A Subdweller sparked back to life 696 | -10/Subcaves | Core integrity fell below 50% 718 | -10/Subcaves | Found Prototype Protection 721 | -10/Subcaves | Identified Gun Armor 722 | -10/Subcaves | Attached Gun Armor, gained temporary slots: Weapon x2 734 | -10/Subcaves | Lost 5 parts (1p2n1u1w) 802 | -10/Subcaves | Learned 4 Materials zone layouts 977 | -10/Subcaves | A swath of the cavern ceiling suddenly collapsed 981 | -10/Subcaves | Entered Recycling 1287 | -9/Recycling | Scanned before Scraplab entrance 1305 | -9/Recycling | Entered Scraplab 1321 | -9/Recycling | Discovered new exit (range 2) 1323 | -9/Recycling | Entered Scraptown 1398 | -9/Scraptown | Build established: Gunner 1601 | -9/Scraptown | Discovered new exit (range 7) 1761 | -9/Scraptown | Scanned Subdweller tech in exchange for log data 1764 | -9/Scraptown | Learned Factory terminal intel 1765 | -9/Scraptown | Learned location of Quarantine (-3) 1771 | -9/Scraptown | Heard Great Nut preacher, LISTEN AND RECITE! 1807 | -9/Scraptown | Visited Symbiants 1836 | -9/Scraptown | Build established: Bomber 1852 | -9/Scraptown | Visited UFD Registry 1866 | -9/Scraptown | Visited Cyclists 1958 | -9/Scraptown | Visited IN-MT5's Study 1998 | -9/Scraptown | Visited CPS Storage 2024 | -9/Scraptown | Visited Awakened 2964 | -9/Scraptown | Visited Spacefarers 2981 | -9/Scraptown | Visited Supply Room 3486 | -9/Scraptown | Registered with UFD as "Fiberbucket" 3530 | -9/Scraptown | Visited Curators Association 3588 | -9/Scraptown | Visited Science Guys 3655 | -9/Scraptown | Visited Botcube Research 3666 | -9/Scraptown | Found Botcube 3717 | -9/Scraptown | Visited Sword Containment 3803 | -9/Scraptown | Visited Derelict Rescue Squad 4101 | -9/Scraptown | Build established: Mutant 4245 | -9/Scraptown | Delivered Scrap Shield to a Scientist 4517 | -9/Scraptown | Visited Modified Component R&D 4657 | -9/Scraptown | Found Scrap Suit 4682 | -9/Scraptown | Found Scrap Suit 4707 | -9/Scraptown | Discovered new exit (range 5) 4770 | -9/Scraptown | Visited Scrap Suit Storage 4823 | -9/Scraptown | Visited LU-1G1's Boring Crew 4962 | -9/Scraptown | Visited Cartography Club 4984 | -9/Scraptown | Build established: Scrapper 5362 | -9/Scraptown | Met Optimus 5362 | -9/Scraptown | Accepted into 0bPrime 5568 | -9/Scraptown | Civil war broke out across Scraptown 5571 | -9/Scraptown | Core integrity fell below 20% 5631 | -9/Scraptown | Lost 3 allies 5659 | -9/Scraptown | Entered Factory 5659 | -6/Factory | Evolved 8 slots: Power x1, Propulsion x2, Utility x4, Weapon x1 5660 | -6/Factory | Loaded intel: 90 trap records 5661 | -6/Factory | Loaded intel: 28 terminal locations 5680 | -6/Factory | Lost 5 allies 5750 | -6/Factory | Loaded intel: 8 recycling unit locations 5754 | -6/Factory | Found Prototype Launcher 5755 | -6/Factory | Identified Scatter Rocket Array 5757 | -6/Factory | Found Scatter Rocket Array 5811 | -6/Factory | Identified exit to Lower Caves 5811 | -6/Factory | Identified exit to Extension 5982 | -6/Factory | Discovered new exit (range 9) 5988 | -6/Factory | Identified exit to Factory 6047 | -6/Factory | Learned location of Protoforge (-3) 6122 | -6/Factory | Build established: Hacker-Mutant 6499 | -6/Factory | Lost 3 parts (1n1u1w) 6594 | -6/Factory | Crushed by falling debris 6622 | -6/Factory | Crushed by falling debris 6649 | -6/Factory | Crushed by falling debris 6680 | -6/Factory | Lost 3 parts (1p2u) 6703 | -6/Factory | Crushed by falling debris 6718 | -6/Factory | Crushed by falling debris 6720 | -6/Factory | Crushed by falling debris 6720 | -6/Factory | Crushed by falling debris 6721 | -6/Factory | Core integrity fell below 50% 6733 | -6/Factory | Crushed by falling debris 6733 | -6/Factory | System corruption reached 10% 6753 | -6/Factory | Crushed by falling debris 6818 | -6/Factory | Entered Extension 6850 | -6/Extension | Disrupted transfer network 6867 | -6/Extension | Rescued a captive Derelict 6868 | -6/Extension | Rescued a captive Derelict 6956 | -6/Extension | Energy Cycler disabled 6956 | -6/Extension | Rescued a captive Derelict 6956 | -6/Extension | Rescued a captive Derelict 6957 | -6/Extension | Rescued a captive Derelict 6958 | -6/Extension | Rescued a captive Derelict 6959 | -6/Extension | Rescued a captive Derelict 7014 | -6/Extension | Core integrity fell below 20% 7081 | -6/Extension | Loaded intel: 2 recycling unit locations 7115 | -6/Extension | Botcube activated 7236 | -6/Extension | Destroyed by Y-54 Guardian with Flak Gun Last Messages --------------- cost to put one of these together is higher, so please use it sparingly as doing so will negatively impact our combat power down the line. We're also beginning strategic diversionary attacks that should weaken Protoforge defenses by the time agents infiltrate the area. UFD!SANITIZING UFD!... 07217_ ALERT: Suspicious activity at Recycling Unit E002. Dispatching Investigation squad. 07218_ Slug penetrates Terminal. 07218_ Penetrated by Slug. 07218_ Terminal disabled. 07218_ Companion Sword follow-up attack on H-66 Slayer. 07218_ H-66 Slayer destroyed. 07226_ System corrupted: Component data lost. 07236_ Cld. VTOL Module destroyed. [Achievement: This Is Interesting...] Map ----- +----------------------------------------------------+ | ?????????????????????????????????????????????????? | | ?????????????????????????????????????????????????? | | ########################?????????????????????????? | | "%" #?????????????????????????? | | ######## #?????????????????????????? | | ???????# #?????????????????????????? | | ???????# #?????????????????????????? | | ???????# #?????????????????????????? | | ???????# #?????????????????????????? | | ???????############# #?????????????????????????? | | ???????????????????# #####?????????????????????? | | ??????########?????# #?????????????????????? | | ??????# """ #?????# % #?????????????????????? | | ?????## "Y" ####### = #?????????????????????? | | ?????# " " + #?????????????????????? | | ?????## % #######+##### #?????????????????????? | | ??????#! #??# #?# #?????????????????????? | | ??????#! #??#! "T" #?# #?????????????????????? | | ??????##"T"###??# """ #?# #?????????????????????? | | ???????#"""#????#! #?# #?????????????????????? | | ???????#####????########?# #?????????????????????? | | ???????????????????#####?# #?????????????????????? | | ??????????????????##"T ### #?????????????????????? | | ????????????????### ! #Y#?????????????????????? | | ????????????????#"" """=#g#?????????????????????? | | ????????????????#"Y "T"[@Y#?????????????????????? | | ????????????????#"" [#g#?????????????????????? | | ????????????????### * #g#?????????????????????? | | ??????????????????# !# #?????????????????????? | | ??????????????????######## #?????????????????????? | | ?????????????????????????# #?????????????????????? | | ?????????????????????????# #?????????????????????? | | ?????????????????????????" "?????????????????????? | | ?????????????????????????" "?????????????????????? | | ????????????????????????? ?????????????????????? | | ????????????????????????? ?????????????????????? | | ????????????????????????? ?????????????????????? | | ????????????????????????? ?????????????????????? | | ????????????????????????? ?????????????????????? | | ?????????????????????????? ??????????????????????? | | ?????????????????????????? ??????????????????????? | | ?????????????????????????????????????????????????? | | ?????????????????????????????????????????????????? | | ?????????????????????????????????????????????????? | | ?????????????????????????????????????????????????? | | ?????????????????????????????????????????????????? | | ?????????????????????????????????????????????????? | | ?????????????????????????????????????????????????? | | ?????????????????????????????????????????????????? | | ?????????????????????????????????????????????????? | +----------------------------------------------------+ Best States ------------- Heat Dissipation 56 Energy Generation 25 Energy Capacity 465 Matter Stores 300 Matter Capacity 300 Sight Range 16 Robot Scan Range 15 Terrain Scan Density 10 Base Temperature (-) 150 Armor Coverage 150 Resistance: KI 20 Resistance: TH 20 Resistance: EX 20 Resistance: EM 20 Resistance: I 20 Resistance: S 20 Resistance: P 20 Evasion (%) 64 Targeting Accuracy 6 Melee Accuracy 8 Recoil Reduction 2 Offensive Hacking 20 Item Schematics ----------------- None Robot Schematics ------------------ None Fabricated ------------ Nothing Repaired ---------- Nothing Alien Tech Used ----------------- None Achievements -------------- Brute Force Can't Catch Me This Is Interesting... Challenges ------------ None Game ------ Seed WardroneSuperchargedShifter Manual? 0 Play Time 01:18:41 Cumulative 53.9 hours Start 2025.05.08 @ 22:57:32 End 2025.05.09 @ 00:17:28 Sessions 1 Manual Loads 0 Difficulty Adventurer Special Mode None Game No. 28 Rogue 0 Adventurer 28 Explorer 0 Win Type - Total 1 Types 1/0/0/0/0/0/0/0/0/0 Lore% 28 Gallery% 42 Achievement% 41 Wizard Run 0 Options --------- Layout 1 ASCII 0 Keyboard 0 Movement Mouse Keybinds 0 Fullscreen 1 Font 24/Smallcaps Map View 50x35 Zoom Use 0% Tactical HUD 1 Map Filters NONE Filters NONE Steam 1 RUN: ed02e54e-bfdd-4304-8192-277a9113d637